fUST/lending_fUST_20240716
["ID","MTS","AMOUNT","RATE_DAILY","PERIOD"]
[332264465,1721104262264,-663.92,0.00023013,2]
[332264467,1721104262274,-527.46190787,0.00023013,2]
[332264469,1721104262283,-573.83,0.00023013,2]
[332264471,1721104262293,-500.0,0.00023013,2]
[332264473,1721104262302,-500.0,0.00023013,2]
[332264475,1721104262311,-500.0,0.00023013,2]
[332264477,1721104262321,-173.04832877,0.00023013,2]
[332264479,1721104262330,-500.0,0.00023013,2]
[332264481,1721104262339,-500.0,0.00023013,2]
[332264483,1721104262349,-720.51,0.00023013,2]
[332264485,1721104262358,-500.0,0.00023013,2]
[332264487,1721104262367,-692.57,0.00023013,2]
[332264489,1721104262377,-787.29,0.00023013,2]
[332264491,1721104262386,-545.24,0.00023013,2]
[332264493,1721104262396,-1510.11,0.00023013,2]
[332264495,1721104262406,-500.0,0.00023013,2]
[332264497,1721104262415,-500.0,0.00023013,2]
[332264499,1721104262424,-500.0,0.00023013,2]
[332264501,1721104262434,-500.0,0.00023013,2]
[332264503,1721104262444,-1287.54,0.00023013,2]
[332264505,1721104262454,-519.07423086,0.00023013,2]
[332264507,1721104262463,-500.0,0.00023013,2]
[332264509,1721104262473,-500.0,0.00023013,2]
[332264511,1721104262482,-856.52,0.00023013,2]
[332264513,1721104262495,-500.0,0.00023013,2]
[332264515,1721104262505,-500.0,0.00023013,2]
[332264517,1721104262517,-500.0,0.00023013,2]
[332264519,1721104262526,-500.0,0.00023013,2]
[332264521,1721104262535,-4043.51,0.00023013,2]
[332264523,1721104262544,-500.0,0.00023013,2]
[332264524,1721104262553,-500.0,0.00023013,2]
[332264526,1721104262562,-500.0,0.00023013,2]
[332264528,1721104262571,-500.0,0.00023013,2]
[332264530,1721104262582,-500.0,0.00023013,2]
[332264532,1721104262593,-500.0,0.00023013,2]
[332264534,1721104262602,-528.77755211,0.00023013,2]
[332264536,1721104262611,-500.0,0.00023013,2]
[332264538,1721104262621,-500.0,0.00023013,4]
[332264540,1721104262631,-500.0,0.00023013,2]
[332264542,1721104262640,-500.0,0.00023013,2]
[332264544,1721104262651,-500.0,0.00023013,2]
[332264546,1721104262662,-500.0,0.00023013,2]
[332264548,1721104262671,-500.0,0.00023013,2]
[332264550,1721104262682,-500.0,0.00023013,2]
[332264552,1721104262691,-500.0,0.00023013,2]
[332264554,1721104262701,-500.0,0.00023013,2]
[332264556,1721104262711,-500.0,0.00023013,2]
[332264558,1721104262721,-500.0,0.00023013,2]
[332264560,1721104262732,-500.0,0.00023013,2]
[332264562,1721104262743,-500.0,0.00023013,2]
[332264564,1721104262752,-500.0,0.00023013,2]
[332264576,1721104262854,-923.62,0.00023013,2]
[332264578,1721104262864,-581.2262155,0.00023013,2]
[332264579,1721104262874,-500.0,0.00023013,2]
[332264581,1721104262883,-500.0,0.00023013,2]
[332264583,1721104262893,-500.0,0.00023013,2]
[332264585,1721104262902,-500.0,0.00023013,2]
[332264587,1721104262911,-500.0,0.00023013,2]
[332264589,1721104262920,-500.0,0.00023013,2]
[332264591,1721104262930,-500.0,0.00023013,2]
[332264594,1721104262940,-500.0,0.00023013,2]
[332264596,1721104262950,-500.0,0.00023013,2]
[332264598,1721104262959,-1031.68,0.00023013,2]
[332264600,1721104262969,-500.0,0.00023013,2]
[332264601,1721104262978,-500.0,0.00023013,2]
[332264604,1721104262988,-638.3,0.00023013,2]
[332264606,1721104262998,-500.0,0.00023013,2]
[332264608,1721104263008,-686.21,0.00023013,2]
[332264610,1721104263018,-190.96568592,0.00023013,2]
[332264612,1721104263027,-500.0,0.00023013,2]
[332264614,1721104263036,-500.0,0.00023013,2]
[332264616,1721104263046,-500.0,0.00023013,2]
[332264618,1721104263056,-887.4,0.00023013,2]
[332264620,1721104263065,-17393.2,0.00023013,2]
[332264622,1721104263075,-500.0,0.00023013,2]
[332264624,1721104263084,-500.0,0.00023013,2]
[332264626,1721104263093,-500.0,0.00023013,2]
[332264627,1721104263102,-500.0,0.00023013,2]
[332264630,1721104263112,-500.0,0.00023013,2]
[332264632,1721104263122,-504.89432416,0.00023013,2]
[332264634,1721104263132,-11483.36,0.00023013,2]
[332264636,1721104263142,-500.0,0.00023013,2]
[332264638,1721104263151,-530.7168023,0.00023013,2]
[332264640,1721104263161,-500.0,0.00023013,2]
[332264642,1721104263170,-500.0,0.00023013,2]
[332264644,1721104263180,-593.99150075,0.00023013,2]
[332264646,1721104263191,-630.8,0.00023013,2]
[332264648,1721104263201,-500.0,0.00023013,2]
[332264650,1721104263211,-561.9,0.00023013,2]
[332264652,1721104263220,-500.0,0.00023013,2]
[332264654,1721104263230,-500.0,0.00023013,2]
[332264656,1721104263241,-500.0,0.00023013,2]
[332264658,1721104263251,-500.0,0.00023013,2]
[332264660,1721104263260,-500.0,0.00023013,2]
[332264662,1721104263271,-500.0,0.00023013,2]
[332264664,1721104263281,-1193.33,0.00023013,2]
[332264666,1721104263291,-506.43096382,0.00023013,2]
[332264668,1721104263301,-500.0,0.00023013,2]
[332264670,1721104263312,-1683.4,0.00023013,2]
[332264672,1721104263323,-500.0,0.00023013,2]
[332264675,1721104263333,-500.0,0.00023013,2]
[332264677,1721104263344,-500.0,0.00023013,2]
[332264679,1721104263354,-9840.86,0.00023013,2]
[332264681,1721104263363,-545.81216125,0.00023013,2]
[332264683,1721104263373,-500.0,0.00023013,2]
[332264685,1721104263382,-500.0,0.00023013,2]
[332264687,1721104263395,-513.93,0.00023013,2]
[332264689,1721104263404,-500.0,0.00023013,2]
[332264691,1721104263414,-500.0,0.00023013,2]
[332264693,1721104263424,-500.0,0.00023013,2]
[332264695,1721104263434,-500.0,0.00023013,2]
[332264697,1721104263444,-379.94229275,0.00023013,2]
[332264699,1721104263454,-500.0,0.00023013,2]
[332264701,1721104263464,-500.0,0.00023013,2]
[332264703,1721104263474,-500.0,0.00023013,2]
[332264706,1721104263484,-500.0,0.00023013,2]
[332264708,1721104263494,-400.5,0.00023115,2]
[332264710,1721104263503,-151.0,0.00023115,2]
[332264711,1721104263513,-151.23864847,0.00023227,2]
[332264714,1721104263523,-153.0,0.00023228,2]
[332264716,1721104263532,-500.0,0.00023287,2]
[332264718,1721104263542,-500.0,0.00023287,2]
[332264720,1721104263551,-592.92275492,0.00023287,2]
[332264722,1721104263561,-500.0,0.00023287,2]
[332264724,1721104263570,-500.0,0.00023287,2]
[332264726,1721104263583,-500.0,0.00023287,2]
[332264727,1721104263593,-500.0,0.00023287,2]
[332264729,1721104263602,-500.0,0.00023287,2]
[332264731,1721104263612,-500.0,0.00023287,2]
[332264733,1721104263622,-524.71964261,0.00023287,2]
[332264735,1721104263631,-500.0,0.00023287,2]
[332264737,1721104263640,-622.51531242,0.00023287,2]
[332264739,1721104263650,-500.0,0.00023287,2]
[332264741,1721104263659,-509.6415422,0.00023287,2]
[332264744,1721104263671,-500.0,0.00023287,2]
[332264746,1721104263682,-500.0,0.00023287,2]
[332264748,1721104263694,-500.0,0.00023287,2]
[332264750,1721104263703,-500.0,0.00023287,2]
[332264752,1721104263712,-500.0,0.00023287,2]
[332264754,1721104263721,-500.0,0.00023287,2]
[332264756,1721104263731,-500.0,0.00023287,2]
[332264758,1721104263741,-500.0,0.00023287,2]
[332264760,1721104263750,-500.0,0.00023287,2]
[332264762,1721104263760,-508.97891749,0.00023287,2]
[332264764,1721104263770,-500.0,0.00023287,2]
[332264766,1721104263779,-500.0,0.00023287,2]
[332264768,1721104263788,-500.0,0.00023287,2]
[332264770,1721104263798,-361.85242654,0.00023287,2]
[332264772,1721104263807,-500.0,0.00023287,2]
[332264774,1721104263816,-500.0,0.00023287,2]
[332264776,1721104263825,-200.0,0.00023287,2]
[332264778,1721104263835,-500.0,0.00023287,2]
[332264780,1721104263844,-500.0,0.00023287,2]
[332264782,1721104263854,-500.0,0.00023287,2]
[332264784,1721104263863,-500.0,0.00023287,2]
[332264786,1721104263872,-500.0,0.00023287,2]
[332264788,1721104263882,-1500.0,0.00023287,2]
[332264790,1721104263891,-572.0,0.00023287,2]
[332264792,1721104263900,-500.0,0.00023287,2]
[332264794,1721104263909,-500.0,0.00023287,2]
[332264796,1721104263919,-508.17620294,0.00023287,2]
[332264798,1721104263928,-500.0,0.00023287,2]
[332264800,1721104263938,-500.0,0.00023287,2]
[332264802,1721104263947,-500.0,0.00023287,2]
[332264813,1721104264036,-500.0,0.00023287,2]
[332264815,1721104264057,-1512.0,0.00023287,2]
[332264817,1721104264066,-506.83527814,0.00023287,2]
[332264819,1721104264075,-551.79,0.00023287,2]
[332264821,1721104264085,-500.0,0.00023287,2]
[332264824,1721104264095,-500.0,0.00023287,2]
[332264826,1721104264104,-500.0,0.00023287,2]
[332264828,1721104264113,-508.24703158,0.00023287,2]
[332264830,1721104264122,-500.0,0.00023287,2]
[332264832,1721104264132,-500.0,0.00023287,2]
[332264834,1721104264141,-506.21711074,0.00023287,2]
[332264836,1721104264151,-1372.12,0.00023287,2]
[332264838,1721104264161,-500.0,0.00023287,2]
[332264840,1721104264170,-206.72700567,0.00023287,2]
[332264842,1721104264180,-500.0,0.00023287,2]
[332264844,1721104264190,-500.0,0.00023287,2]
[332264846,1721104264199,-500.0,0.00023287,2]
[332264848,1721104264209,-500.0,0.00023287,2]
[332264849,1721104264218,-500.0,0.00023287,2]
[332264851,1721104264228,-500.0,0.00023287,2]
[332264853,1721104264239,-500.0,0.00023287,2]
[332264856,1721104264249,-500.0,0.00023287,2]
[332264858,1721104264258,-500.0,0.00023287,2]
[332264859,1721104264268,-500.0,0.00023287,2]
[332264861,1721104264278,-443.18687121,0.00023287,2]
[332264881,1721104264449,-56.81312879,0.00023287,2]
[332264883,1721104264459,-351.18687121,0.00023287,2]
[332264885,1721104264471,-148.81312879,0.00023287,2]
[332264887,1721104264486,-500.0,0.00023287,2]
[332264890,1721104264504,-423.05702008,0.00023287,2]
[332264893,1721104264521,-868.54,0.00023287,2]
[332264896,1721104264540,-62.60900285,0.00023287,2]
[332264932,1721104265001,-129.94373064,0.00022465,2]
[332269570,1721105345909,-400.02604267,0.00018899,2]
[332269626,1721105431791,-154.8590105,0.00018899,2]
[332269627,1721105431801,-95.95698949,0.000189,2]
[332269649,1721105437842,-54.04301051,0.000189,2]
[332269650,1721105437852,-520.01150367,0.00021095,2]
[332269651,1721105437862,-166.8,0.00021187,2]
[332269652,1721105437872,-166.8,0.00021524,2]
[332269653,1721105437882,-859.38900488,0.0002181,2]
[332269654,1721105437891,-166.8,0.00021862,2]
[332269655,1721105437901,-3000.0,0.000219,2]
[332269656,1721105437911,-300.0,0.00021906,2]
[332269657,1721105437921,-16766.15648094,0.00021907,3]
[332269760,1721105439972,-333.08961,0.00021096,2]
[332269762,1721105439981,-21140.34529416,0.00021907,3]
[332269764,1721105439991,-3000.0,0.0002191,2]
[332269766,1721105440000,-1066.9082796,0.00021917,2]
[332269767,1721105440010,-500.0,0.00021917,2]
[332269769,1721105440020,-500.0,0.00021917,2]
[332269770,1721105440031,-633.11453768,0.00021917,2]
[332269771,1721105440042,-452.41196888,0.00021917,2]
[332269772,1721105440052,-500.0,0.00021917,2]
[332269773,1721105440061,-1029.09,0.00021917,2]
[332269774,1721105440070,-500.0,0.00021917,2]
[332269775,1721105440079,-500.0,0.00021917,2]
[332269776,1721105440089,-500.0,0.00021917,2]
[332269779,1721105440101,-500.0,0.00021917,2]
[332269781,1721105440111,-500.0,0.00021917,2]
[332269783,1721105440123,-500.0,0.00021917,2]
[332269785,1721105440135,-500.0,0.00021917,2]
[332269787,1721105440145,-500.0,0.00021917,2]
[332269789,1721105440154,-500.0,0.00021917,2]
[332269791,1721105440163,-560.9239158,0.00021917,2]
[332269793,1721105440172,-500.0,0.00021917,2]
[332269795,1721105440184,-500.0,0.00021917,2]
[332269797,1721105440193,-507.22992406,0.00021917,2]
[332269799,1721105440203,-500.0,0.00021917,2]
[332269801,1721105440214,-500.0,0.00021917,2]
[332269803,1721105440223,-341.09145131,0.00021917,2]
[332269805,1721105440232,-500.0,0.00021917,2]
[332269807,1721105440242,-500.0,0.00021917,2]
[332269809,1721105440252,-500.0,0.00021917,2]
[332269811,1721105440261,-500.0,0.00021917,2]
[332269813,1721105440270,-500.0,0.00021917,2]
[332269815,1721105440280,-265.46901358,0.00021917,2]
[332269817,1721105440289,-500.0,0.00021917,2]
[332269819,1721105440298,-556.37893937,0.00021917,2]
[332269821,1721105440309,-500.0,0.00021917,2]
[332269823,1721105440320,-500.0,0.00021917,2]
[332269825,1721105440330,-500.0,0.00021917,2]
[332269828,1721105440340,-500.0,0.00021917,2]
[332269830,1721105440352,-500.0,0.00021917,2]
[332269832,1721105440361,-500.0,0.00021917,2]
[332269834,1721105440371,-500.0,0.00021917,2]
[332269836,1721105440384,-363.53848588,0.00021917,2]
[332269838,1721105440395,-500.0,0.00021917,2]
[332269840,1721105440405,-500.0,0.00021917,2]
[332269842,1721105440414,-500.0,0.00021917,2]
[332269844,1721105440423,-651.4,0.00021917,2]
[332269846,1721105440435,-504.68599142,0.00021917,2]
[332269848,1721105440445,-500.0,0.00021917,2]
[332269850,1721105440454,-500.0,0.00021917,4]
[332269865,1721105440594,-500.0,0.00021917,2]
[332269867,1721105440605,-500.0,0.00021917,2]
[332269869,1721105440615,-500.0,0.00021917,2]
[332269871,1721105440625,-506.39992733,0.00021917,2]
[332269873,1721105440635,-500.0,0.00021917,2]
[332269875,1721105440646,-359.16801209,0.00021917,2]
[332269878,1721105440655,-497.75049021,0.00021917,2]
[332269880,1721105440665,-500.0,0.00021917,2]
[332269882,1721105440675,-500.0,0.00021917,2]
[332269884,1721105440686,-500.0,0.00021917,2]
[332269886,1721105440697,-500.0,0.00021917,2]
[332269888,1721105440708,-500.0,0.00021917,2]
[332269890,1721105440718,-500.0,0.00021917,2]
[332269892,1721105440727,-500.0,0.00021917,2]
[332269894,1721105440736,-500.0,0.00021917,2]
[332269896,1721105440746,-500.0,0.00021917,2]
[332269898,1721105440755,-500.0,0.00021917,2]
[332269900,1721105440765,-500.0,0.00021917,2]
[332269902,1721105440774,-500.0,0.00021917,2]
[332269904,1721105440784,-500.0,0.00021917,2]
[332269906,1721105440795,-500.0,0.00021917,2]
[332269908,1721105440805,-500.0,0.00021917,2]
[332269910,1721105440814,-500.0,0.00021917,2]
[332269912,1721105440823,-500.0,0.00021917,2]
[332269914,1721105440832,-500.0,0.00021917,2]
[332269916,1721105440841,-521.80688367,0.00021917,2]
[332269919,1721105440851,-489.69292984,0.00021917,2]
[332269920,1721105440860,-508.98750828,0.00021917,2]
[332269922,1721105440870,-588.80396874,0.00021917,2]
[332269924,1721105440879,-500.0,0.00021917,2]
[332269926,1721105440888,-500.0,0.00021917,2]
[332269928,1721105440897,-500.0,0.00021917,2]
[332269930,1721105440906,-500.0,0.00021917,2]
[332269932,1721105440915,-462.66033055,0.00021917,2]
[332269934,1721105440924,-500.0,0.00021917,2]
[332269935,1721105440934,-500.0,0.00021917,2]
[332269937,1721105440943,-260.09193763,0.00021917,2]
[332270230,1721105442902,-239.90806237,0.00021917,2]
[332270232,1721105442914,-500.0,0.00021917,2]
[332270234,1721105442924,-500.0,0.00021917,2]
[332270236,1721105442935,-500.0,0.00021917,2]
[332270238,1721105442945,-500.0,0.00021917,2]
[332270240,1721105442958,-500.0,0.00021917,2]
[332270242,1721105442967,-500.0,0.00021917,2]
[332270244,1721105442976,-4.34993749,0.00021917,2]
[332270247,1721105442989,-495.65006251,0.00021917,2]
[332270249,1721105442999,-500.0,0.00021917,2]
[332270251,1721105443008,-489.33514682,0.00021917,2]
[332275568,1721105565031,7393.11329331,0.00016255,2]
[332275569,1721105837571,1609.40940753,0.00016255,2]
[332275605,1721106632814,-150.0,0.000189,2]
[332275606,1721106632824,-293.79355816,0.0002,2]
[332275607,1721106632835,-520.01150367,0.00021095,2]
[332275608,1721106632845,-316.435129,0.00021096,2]
[332275609,1721106632855,-751.96537927,0.00021817,2]
[332275610,1721106632863,-3000.0,0.000219,2]
[332275611,1721106632873,-300.0,0.00021906,2]
[332275612,1721106632882,-1125.16952508,0.00021907,3]
[332275688,1721106643232,-645.18006546,0.00021907,3]
[332275690,1721106643247,-1611.0,0.00021907,3]
[332276757,1721107320300,45057.38581062,0.00018,2]
[332276762,1721107409662,1047.93,0.00018,2]
[332276897,1721107616162,-151.86824909,0.000198,2]
[332276898,1721107616191,-154.57084948,0.00020411,2]
[332277022,1721107838256,-150.0,0.000189,2]
[332277024,1721107838266,-220.67585692,0.00019039,3]
[332277030,1721107838317,-85.76324165,0.00019039,3]
[332277032,1721107838327,-645.26014656,0.00020177,2]
[332277034,1721107838337,-898.69451385,0.00020311,2]
[332277036,1721107838346,-3545.71677881,0.00020311,2]
[332277038,1721107838356,-300.0,0.00020409,2]
[332277040,1721107838366,-500.0,0.0002041,2]
[332277042,1721107838375,-505.58473748,0.0002041,2]
[332277044,1721107838386,-504.12164553,0.0002041,2]
[332277046,1721107838395,-311.78711242,0.0002041,2]
[332277048,1721107838405,-300.0,0.0002041,2]
[332277050,1721107838415,-7.47180992,0.00020411,2]
[332277052,1721107838424,-184.30508763,0.00020411,5]
[332277054,1721107838433,-764.72891361,0.00020411,2]
[332277056,1721107838443,-10611.62980272,0.00020411,2]
[332277058,1721107838452,-350409.83986168,0.00020411,2]
[332277060,1721107838462,-428.71334484,0.00020411,2]
[332277062,1721107838471,-205.0576984,0.00020543,2]
[332277064,1721107838481,-3545.71677881,0.00020688,2]
[332277066,1721107838491,-2000.0,0.00021,2]
[332277068,1721107838500,-3545.71677881,0.00021064,2]
[332277070,1721107838509,-270.92599341,0.00021095,2]
[332277072,1721107838520,-300.613372,0.00021096,2]
[332277074,1721107838530,-4661.96319962,0.00021104,2]
[332277076,1721107838540,-153.0,0.00021178,2]
[332277078,1721107838550,-386.8722669,0.00021178,2]
[332277081,1721107838560,-621.26300733,0.00021186,2]
[332277083,1721107838569,-293.5691494,0.0002126,2]
[332277085,1721107838579,-345.289672,0.00021267,2]
[332277087,1721107838589,-3545.71677881,0.00021441,2]
[332277089,1721107838598,-150.0,0.00021473,2]
[332277091,1721107838609,-4661.96319962,0.00021475,2]
[332277093,1721107838622,-2003.55852072,0.000215,3]
[332277095,1721107838632,-345.289673,0.00021626,2]
[332277097,1721107838642,-13974.85700562,0.00021798,2]
[332277099,1721107838655,-2000.0,0.00021807,2]
[332277101,1721107838664,-3545.71677881,0.00021817,2]
[332277103,1721107838673,-63426.6481405,0.00021897,3]
[332277105,1721107838685,-153.0,0.000219,2]
[332277107,1721107838694,-153.0,0.000219,2]
[332277109,1721107838704,-153.0,0.000219,2]
[332277111,1721107838713,-3000.0,0.000219,2]
[332277113,1721107838724,-500.0,0.00021906,2]
[332277115,1721107838734,-500.0,0.00021906,2]
[332277117,1721107838743,-500.0,0.00021906,2]
[332277119,1721107838754,-530.57084207,0.00021906,2]
[332277120,1721107838764,-500.0,0.00021906,2]
[332277122,1721107838773,-391.51544851,0.00021906,2]
[332277125,1721107838784,-500.0,0.00021906,2]
[332277127,1721107838793,-500.0,0.00021906,2]
[332277129,1721107838803,-500.0,0.00021906,2]
[332277130,1721107838813,-500.0,0.00021906,2]
[332277133,1721107838823,-500.0,0.00021906,2]
[332277135,1721107838833,-210.68159764,0.00021906,2]
[332277137,1721107838843,-500.0,0.00021906,2]
[332277139,1721107838853,-10571.1080234,0.00021907,3]
[332277141,1721107838862,-31713.3240702,0.00021907,3]
[332277143,1721107838871,-9948.54327044,0.0002191,5]
[332277145,1721107838880,-46.41361394,0.0002191,2]
[332277147,1721107838895,-2953.58638606,0.0002191,2]
[332277149,1721107838907,-1066.9082796,0.00021917,2]
[332277151,1721107838917,-500.0,0.00021917,2]
[332277153,1721107838926,-504.25695854,0.00021917,2]
[332277155,1721107838936,-508.09657341,0.00021917,2]
[332277157,1721107838947,-500.0,0.00021917,2]
[332277160,1721107838959,-500.0,0.00021917,2]
[332277162,1721107838969,-1500.0,0.00021917,2]
[332277164,1721107838978,-500.0,0.00021917,2]
[332277166,1721107838988,-500.0,0.00021917,2]
[332277167,1721107838998,-500.0,0.00021917,2]
[332277169,1721107839007,-500.0,0.00021917,2]
[332277172,1721107839017,-500.0,0.00021917,2]
[332277173,1721107839028,-487.08624333,0.00021917,2]
[332277176,1721107839038,-173.20055954,0.00021917,2]
[332277178,1721107839049,-500.0,0.00021917,2]
[332277180,1721107839059,-513.41237092,0.00021917,2]
[332277182,1721107839068,-500.0,0.00021917,2]
[332277184,1721107839077,-500.0,0.00021917,2]
[332277186,1721107839087,-1134.0,0.00021917,2]
[332277188,1721107839096,-532.35735542,0.00021917,2]
[332277190,1721107839106,-500.0,0.00021917,2]
[332277192,1721107839116,-500.0,0.00021917,2]
[332277194,1721107839125,-500.0,0.00021917,2]
[332277196,1721107839135,-500.0,0.00021917,2]
[332277198,1721107839146,-500.0,0.00021917,2]
[332277200,1721107839155,-520.25685956,0.00021917,2]
[332277201,1721107839164,-500.0,0.00021917,2]
[332277204,1721107839174,-505.53857255,0.00021917,2]
[332277206,1721107839183,-500.0,0.00021917,2]
[332277208,1721107839194,-500.0,0.00021917,2]
[332277210,1721107839204,-200.0,0.00021917,2]
[332277212,1721107839214,-500.0,0.00021917,2]
[332277214,1721107839224,-500.0,0.00021917,2]
[332277216,1721107839234,-500.0,0.00021917,2]
[332277218,1721107839243,-223.99046831,0.00021917,2]
[332277220,1721107839252,-500.0,0.00021917,2]
[332277222,1721107839262,-509.14222086,0.00021917,2]
[332277224,1721107839271,-500.0,0.00021917,2]
[332277226,1721107839282,-500.0,0.00021917,2]
[332277228,1721107839291,-426.59642273,0.00021917,2]
[332277230,1721107839302,-503.74596657,0.00021917,2]
[332277232,1721107839311,-500.0,0.00021917,2]
[332277234,1721107839321,-986.21,0.00021917,2]
[332277236,1721107839331,-500.0,0.00021917,2]
[332277238,1721107839340,-500.0,0.00021917,2]
[332277240,1721107839350,-500.0,0.00021917,2]
[332277242,1721107839359,-624.26,0.00021917,2]
[332277244,1721107839369,-502.13329662,0.00021917,2]
[332277246,1721107839378,-500.0,0.00021917,2]
[332277248,1721107839388,-500.0,0.00021917,2]
[332277250,1721107839400,-166.8164042,0.00021917,2]
[332277252,1721107839411,-500.0,0.00021917,2]
[332277254,1721107839421,-500.0,0.00021917,2]
[332277256,1721107839431,-500.0,0.00021917,2]
[332277258,1721107839441,-500.0,0.00021917,2]
[332277260,1721107839450,-500.0,0.00021917,2]
[332277262,1721107839460,-516.70012658,0.00021917,2]
[332277264,1721107839469,-500.0,0.00021917,2]
[332277266,1721107839479,-500.0,0.00021917,2]
[332277268,1721107839488,-500.0,0.00021917,2]
[332277270,1721107839497,-500.0,0.00021917,2]
[332277272,1721107839507,-500.0,0.00021917,2]
[332277274,1721107839516,-500.0,0.00021917,2]
[332277276,1721107839525,-500.0,0.00021917,2]
[332277278,1721107839535,-500.0,0.00021917,2]
[332277280,1721107839545,-500.0,0.00021917,2]
[332277282,1721107839554,-249.20787976,0.00021917,2]
[332277284,1721107839564,-500.0,0.00021917,2]
[332277286,1721107839574,-500.0,0.00021917,2]
[332277288,1721107839584,-500.0,0.00021917,2]
[332277290,1721107839593,-500.0,0.00021917,2]
[332277292,1721107839603,-500.0,0.00021917,2]
[332277295,1721107839613,-500.0,0.00021917,2]
[332277298,1721107839622,-500.0,0.00021917,2]
[332277300,1721107839632,-500.0,0.00021917,2]
[332277302,1721107839642,-500.0,0.00021917,2]
[332277304,1721107839656,-500.0,0.00021917,2]
[332277306,1721107839665,-500.0,0.00021917,2]
[332277308,1721107839675,-500.0,0.00021917,2]
[332277311,1721107839689,-500.0,0.00021917,2]
[332277313,1721107839699,-500.0,0.00021917,2]
[332277314,1721107839709,-500.0,0.00021917,2]
[332277317,1721107839720,-500.0,0.00021917,2]
[332277319,1721107839729,-500.0,0.00021917,2]
[332277321,1721107839738,-500.0,0.00021917,2]
[332277322,1721107839748,-500.0,0.00021917,2]
[332277324,1721107839758,-500.0,0.00021917,2]
[332277327,1721107839769,-500.0,0.00021917,2]
[332277329,1721107839778,-500.0,0.00021917,2]
[332277331,1721107839789,-500.0,0.00021917,2]
[332277333,1721107839798,-500.0,0.00021917,2]
[332277335,1721107839809,-500.0,0.00021917,2]
[332277337,1721107839819,-500.0,0.00021917,2]
[332277339,1721107839830,-500.0,0.00021917,2]
[332277341,1721107839841,-500.0,0.00021917,2]
[332277343,1721107839850,-500.0,0.00021917,2]
[332277346,1721107839860,-500.0,0.00021917,2]
[332277348,1721107839870,-500.0,0.00021917,2]
[332277350,1721107839880,-309.02593872,0.00021917,2]
[332277352,1721107839890,-500.0,0.00021917,2]
[332277354,1721107839904,-278.73319387,0.00021917,2]
[332277356,1721107839915,-500.0,0.00021917,2]
[332277359,1721107839924,-500.0,0.00021917,2]
[332277361,1721107839934,-500.0,0.00021917,2]
[332277363,1721107839947,-500.0,0.00021917,2]
[332277365,1721107839956,-500.0,0.00021917,2]
[332277366,1721107839966,-500.0,0.00021917,2]
[332277368,1721107839976,-500.0,0.00021917,2]
[332277370,1721107839985,-477.51799672,0.00021917,2]
[332277372,1721107839994,-500.0,0.00021917,2]
[332277374,1721107840004,-500.0,0.00021917,2]
[332277376,1721107840014,-500.0,0.00021917,2]
[332277378,1721107840024,-500.0,0.00021917,2]
[332277380,1721107840034,-525.61,0.00021917,2]
[332277382,1721107840045,-506.09461239,0.00021917,2]
[332277385,1721107840055,-548.29,0.00021917,2]
[332277387,1721107840065,-500.0,0.00021917,2]